[Event "Fall GM Norm Invitational 2020"]
[Site "Charlotte"]
[Date "2020.10.04"]
[Round "7.3"]
[White "Daggupati, Balaji"]
[Black "Ostrovskiy, Aleksandr"]
[Result "1/2-1/2"]
[ECO "B12"]
[WhiteElo "2331"]
[BlackElo "2427"]
[Annotator "ChessBase"]
[PlyCount "117"]
[EventDate "2020.09.30"]
[EventType "tourn"]
[EventCountry "USA"]
[SourceTitle "playchess.com"]
[Source "ChessBase"]
[SourceQuality "1"]
[TimeControl "5400+30"]

1. e4 {[%emt 1:30:30]} c6 {[%emt 1:30:30]} 2. d4 {[%emt 0:00:30]} d5 {[%emt 0:00:30]} 3. e5 {[%emt 0:00:30]} c5 {[%emt 0:00:30]} 4. dxc5 {[%emt 0:00:30]} e6 {[%emt 0:00:30]} 5. a3 {[%emt 0:00:30]} Bxc5 {[%emt 0:00:30]} 6. b4 {[%emt 0:00:30]} Be7 {[%emt 0:00:30]} 7. Nf3 {[%emt 0:00:30]} Nd7 {[%emt 0:00:30]} 8. Bb2 {[%emt 0:00:30]} a5 {[%emt 0:00:30]} 9. b5 {[%emt 0:00:30]} Nh6 {[%emt 0:00:30]} 10. c4 {[%emt 0:00:30]} Nb6 {[%emt 0:00:30]} 11. cxd5 {[%emt 0:00:30]} exd5 {[%emt 0:00:30]} 12. Bd3 {[%emt 0:00:30]} Bf5 {[%emt 0:00:30]} 13. O-O {[%emt 0:00:30]} O-O {[%emt 0:00:30]} 14. Bc1 {[%emt 0:00:30]} Bg6 {[%emt 0:00:30]} 15. Bxh6 {[%emt 0:00:30]} gxh6 {[%emt 0:00:30]} 16. Nc3 {[%emt 0:00:30]} Rc8 {[%emt 0:00:30]} 17. Ne2 {[%emt 0:00:30]} Nc4 {[%emt 0:00:30]} 18. Bxg6 {[%emt 0:00:30]} hxg6 {[%emt 0:00:30]} 19. Qd3 {[%emt 0:00:30]} Re8 {[%emt 0:00:30]} 20. Nf4 {[%emt 0:00:30]} Bg5 {[%emt 0:00:30]} 21. Nxg5 {[%emt 0:00:30]} Qxg5 {[%emt 0:00:30]} 22. Nxd5 {[%emt 0:00:30]} Rxe5 {[%emt 0:00:30]} 23. Qh3 {[%emt 0:00:30]} Ree8 {[%emt 0:00:30]} 24. Rad1 {[%emt 0:00:30]} Rc5 {[%emt 0:00:30]} 25. Qd7 {[%emt 0:00:30]} Re2 {[%emt 0:00:30]} 26. Nc3 {[%emt 0:00:30]} Re6 {[%emt 0:00:30]} 27. Na4 {[%emt 0:00:30]} Nxa3 {[%emt 0:00:30]} 28. Nxc5 {[%emt 0:00:30]} Qxc5 {[%emt 0:00:30]} 29. Qxb7 {[%emt 0:00:30]} Qxb5 {[%emt 0:00:30]} 30. Rd8+ {[%emt 0:00:30]} Kg7 {[%emt 0:00:30]} 31. Qxb5 {[%emt 0:00:30]} Nxb5 {[%emt 0:00:30]} 32. Rd5 {[%emt 0:00:30]} Nc3 {[%emt 0:00:30]} 33. Rxa5 {[%emt 0:00:30]} Ne2+ {[%emt 0:00:30]} 34. Kh1 {[%emt 0:00:30]} h5 35. h4 {[%emt 0:00:30]} Nd4 {[%emt 0:01:00]} 36. g3 {[%emt 0:00:30]} Nf5 {[%emt 0:00:30]} 37. Kg2 {[%emt 0:00:30]} Nh6 {[%emt 0:00:30]} 38. Ra2 {[%emt 0:00:30]} Rf6 {[%emt 0:00:30]} 39. Rd1 {[%emt 0:00:30]} Rb6 {[%emt 0:00:30]} 40. Rd4 {[%emt 0:00:30]} Nf5 {[%emt 0:00:30]} 41. Rf4 {[%emt 0:00:30]} Rb7 {[%emt 0:00:30]} 42. Ra5 {[%emt 0:00:30]} Rc7 {[%emt 0:00:30]} 43. g4 {[%emt 0:00:30]} hxg4 {[%emt 0:00:30]} 44. Rxg4 {[%emt 0:00:30]} Kh6 {[%emt 0:00:30]} 45. Ra8 {[%emt 0:00:30]} Kh5 {[%emt 0:00:30]} 46. Raa4 {[%emt 0:00:30]} Rc2 {[%emt 0:00:30]} 47. Rgf4 {[%emt 0:00:30]} Rc7 {[%emt 0:00:30]} 48. Ra5 {[%emt 0:00:30]} Rb7 {[%emt 0:00:30]} 49. Rd5 {[%emt 0:00:30]} Ra7 {[%emt 0:00:30]} 50. Rc5 {[%emt 0:00:30]} Rb7 {[%emt 0:00:30]} 51. Rfc4 {[%emt 0:00:30]} Rb6 {[%emt 0:00:30]} 52. Kf3 {[%emt 0:00:30]} Rb3+ {[%emt 0:00:30]} 53. Kg2 {[%emt 0:00:30]} Rb6 {[%emt 0:00:30]} 54. Ra5 {[%emt 0:00:30]} Rb7 {[%emt 0:00:30]} 55. Raa4 {[%emt 0:00:30]} Rd7 {[%emt 0:00:30]} 56. Kf3 {[%emt 0:00:30]} Rd3+ {[%emt 0:00:30]} 57. Ke4 {[%emt 0:00:30]} Rd2 {[%emt 0:00:30]} 58. Kf3 {[%emt 0:00:30]} Rd3+ {[%emt 0:00:30]} 59. Kg2 {[%emt 0:00:30]} 1/2-1/2

[Event "Fall GM Norm Invitational 2020"]
[Site "Charlotte"]
[Date "2020.10.04"]
[Round "7.4"]
[White "Mishra, Abhimanyu"]
[Black "Dragun, Kamil"]
[Result "0-1"]
[ECO "B72"]
[WhiteElo "2342"]
[BlackElo "2561"]
[Annotator "ChessBase"]
[PlyCount "90"]
[EventDate "2020.09.30"]
[EventType "tourn"]
[EventCountry "USA"]
[SourceTitle "playchess.com"]
[Source "ChessBase"]
[SourceQuality "1"]
[TimeControl "5400+30"]

1. e4 {[%emt 1:30:30]} c5 {[%emt 1:30:30]} 2. Nf3 {[%emt 0:00:30]} d6 {[%emt 0:00:30]} 3. d4 {[%emt 0:00:30]} cxd4 {[%emt 0:00:30]} 4. Nxd4 {[%emt 0:00:30]} Nf6 {[%emt 0:00:30]} 5. Nc3 {[%emt 0:00:30]} a6 {[%emt 0:00:30]} 6. Bd3 {[%emt 0:00:30]} g6 {[%emt 0:00:30]} 7. f3 {[%emt 0:00:30]} Bg7 {[%emt 0:00:30]} 8. Be3 {[%emt 0:00:30]} Nbd7 {[%emt 0:00:30]} 9. Qd2 {[%emt 0:00:30]} b5 {[%emt 0:00:30]} 10. Bh6 {[%emt 0:00:30]} Bxh6 {[%emt 0:00:30]} 11. Qxh6 {[%emt 0:00:30]} e5 {[%emt 0:00:30]} 12. Nb3 {[%emt 0:00:30]} b4 {[%emt 0:00:30]} 13. Ne2 {[%emt 0:00:30]} Qb6 {[%emt 0:00:30]} 14. Nd2 {[%emt 0:00:30]} a5 {[%emt 0:00:30]} 15. Nc4 {[%emt 0:00:30]} Qc5 {[%emt 0:00:30]} 16. Qe3 {[%emt 0:00:30]} Ke7 {[%emt 0:00:30]} 17. Ng3 {[%emt 0:00:30]} Ba6 {[%emt 0:00:30]} 18. Qxc5 {[%emt 0:00:30]} Nxc5 {[%emt 0:00:30]} 19. Nf1 {[%emt 0:00:30]} Nxd3+ {[%emt 0:00:30]} 20. cxd3 {[%emt 0:00:30]} d5 {[%emt 0:00:30]} 21. Nxe5 {[%emt 0:00:30]} Ke6 {[%emt 0:00:30]} 22. d4 {[%emt 0:00:30]} dxe4 {[%emt 0:00:30]} 23. O-O-O {[%emt 0:00:30]} Rac8+ {[%emt 0:00:30]} 24. Kb1 {[%emt 0:00:30]} exf3 {[%emt 0:00:30]} 25. Nxf3 {[%emt 0:00:30]} Ne4 {[%emt 0:00:30]} 26. Ng3 {[%emt 0:00:30]} f5 {[%emt 0:00:30]} 27. Rhe1 {[%emt 0:00:30]} Kd5 {[%emt 0:00:30]} 28. Ne2 {[%emt 0:00:30]} Bxe2 {[%emt 0:00:30]} 29. Rxe2 {[%emt 0:00:30]} Rhe8 {[%emt 0:00:30]} 30. Rde1 {[%emt 0:00:30]} a4 {[%emt 0:00:30]} 31. Re3 {[%emt 0:00:30]} Rc7 {[%emt 0:00:30]} 32. Rd3 {[%emt 0:00:30]} g5 {[%emt 0:00:30]} 33. Rf1 {[%emt 0:00:30]} f4 {[%emt 0:00:30]} 34. h3 {[%emt 0:00:30]} Rec8 {[%emt 0:00:30]} 35. h4 {[%emt 0:00:30]} h6 {[%emt 0:00:30]} 36. hxg5 {[%emt 0:00:30]} hxg5 37. Nd2 {[%emt 0:00:30]} Ng3 {[%emt 0:01:00]} 38. Re1 {[%emt 0:00:30]} Ne2 {[%emt 0:00:30]} 39. a3 {[%emt 0:00:30]} Rc1+ {[%emt 0:00:30]} 40. Rxc1 {[%emt 0:00:30]} Rxc1+ {[%emt 0:00:30]} 41. Ka2 {[%emt 0:00:30]} Rd1 {[%emt 0:00:30]} 42. Rh3 {[%emt 0:00:30]} Nc1+ {[%emt 0:00:30]} 43. Kb1 {[%emt 0:00:30]} Nb3+ {[%emt 0:00:30]} 44. Kc2 {[%emt 0:00:30]} Rxd2+ {[%emt 0:00:30]} 45. Kb1 Nxd4 {[%emt 0:00:30]} 0-1

[Event "Fall GM Norm Invitational 2020"]
[Site "Charlotte"]
[Date "2020.10.04"]
[Round "7.5"]
[White "Stremavicius, Titas"]
[Black "Fernandez, Daniel"]
[Result "1/2-1/2"]
[ECO "D14"]
[WhiteElo "2517"]
[BlackElo "2470"]
[Annotator "ChessBase"]
[PlyCount "20"]
[EventDate "2020.09.30"]
[EventType "tourn"]
[EventCountry "USA"]
[SourceTitle "playchess.com"]
[Source "ChessBase"]
[SourceQuality "1"]
[TimeControl "5400+30"]

1. d4 {[%emt 1:30:30]} Nf6 {[%emt 1:30:30]} 2. Nf3 {[%emt 0:00:30]} d5 {[%emt 0:00:30]} 3. c4 {[%emt 0:00:30]} c6 {[%emt 0:00:30]} 4. cxd5 {[%emt 0:00:30]} cxd5 {[%emt 0:00:30]} 5. Nc3 {[%emt 0:00:30]} Nc6 {[%emt 0:00:30]} 6. Bf4 {[%emt 0:00:30]} Bf5 {[%emt 0:00:30]} 7. e3 {[%emt 0:00:30]} e6 {[%emt 0:00:30]} 8. Bd3 {[%emt 0:00:30]} Bxd3 {[%emt 0:00:30]} 9. Qxd3 {[%emt 0:00:30]} Bd6 {[%emt 0:00:30]} 10. Bxd6 {[%emt 0:00:30]} Qxd6 {[%emt 0:00:30]} 1/2-1/2

[Event "Fall GM Norm Invitational 2020"]
[Site "Charlotte"]
[Date "2020.10.04"]
[Round "8.3"]
[White "Ostrovskiy, Aleksandr"]
[Black "Liang, Jason"]
[Result "1-0"]
[ECO "B15"]
[WhiteElo "2427"]
[BlackElo "2367"]
[Annotator "ChessBase"]
[PlyCount "179"]
[EventDate "2020.09.30"]
[EventType "tourn"]
[EventCountry "USA"]
[SourceTitle "playchess.com"]
[Source "ChessBase"]
[SourceQuality "1"]
[TimeControl "5400+30"]

1. e4 {[%emt 1:30:30]} c6 {[%emt 1:30:30]} 2. Nc3 {[%emt 0:00:30]} d5 {[%emt 0:00:30]} 3. Nf3 {[%emt 0:00:30]} g6 {[%emt 0:00:30]} 4. d4 {[%emt 0:00:30]} Bg7 {[%emt 0:00:30]} 5. h3 {[%emt 0:00:30]} dxe4 {[%emt 0:00:30]} 6. Nxe4 {[%emt 0:00:30]} Nf6 {[%emt 0:00:30]} 7. Nxf6+ {[%emt 0:00:30]} exf6 {[%emt 0:00:30]} 8. Bd3 {[%emt 0:00:30]} O-O {[%emt 0:00:30]} 9. O-O {[%emt 0:00:30]} a5 {[%emt 0:00:30]} 10. Re1 {[%emt 0:00:30]} Na6 {[%emt 0:00:30]} 11. c3 {[%emt 0:00:30]} Nc7 {[%emt 0:00:30]} 12. Bf4 {[%emt 0:00:30]} Nd5 {[%emt 0:00:30]} 13. Bh2 {[%emt 0:00:30]} a4 {[%emt 0:00:30]} 14. c4 {[%emt 0:00:30]} Nb4 {[%emt 0:00:30]} 15. Bf1 {[%emt 0:00:30]} a3 {[%emt 0:00:30]} 16. Qb3 {[%emt 0:00:30]} axb2 {[%emt 0:00:30]} 17. Qxb2 {[%emt 0:00:30]} Na6 {[%emt 0:00:30]} 18. Rad1 {[%emt 0:00:30]} Re8 {[%emt 0:00:30]} 19. Rxe8+ {[%emt 0:00:30]} Qxe8 {[%emt 0:00:30]} 20. d5 {[%emt 0:00:30]} Qd8 {[%emt 0:00:30]} 21. Qd4 {[%emt 0:00:30]} c5 {[%emt 0:00:30]} 22. Qb2 {[%emt 0:00:30]} b6 {[%emt 0:00:30]} 23. a3 {[%emt 0:00:30]} Nb8 {[%emt 0:00:30]} 24. Re1 {[%emt 0:00:30]} Nd7 {[%emt 0:00:30]} 25. Qb3 {[%emt 0:00:30]} Ba6 {[%emt 0:00:30]} 26. Nd2 {[%emt 0:00:30]} f5 {[%emt 0:00:30]} 27. Nf3 Qf8 {[%emt 0:00:30]} 28. Qa4 {[%emt 0:01:00]} Qd8 {[%emt 0:00:30]} 29. Qc6 {[%emt 0:00:30]} Rc8 {[%emt 0:00:30]} 30. Qa4 {[%emt 0:00:30]} Ra8 {[%emt 0:00:30]} 31. Qc6 {[%emt 0:00:30]} Rc8 {[%emt 0:00:30]} 32. Qd6 {[%emt 0:00:30]} Bf8 {[%emt 0:00:30]} 33. Qf4 {[%emt 0:00:30]} Qf6 {[%emt 0:00:30]} 34. Ne5 {[%emt 0:00:30]} Nxe5 {[%emt 0:00:30]} 35. Qxe5 {[%emt 0:00:30]} Qxe5 {[%emt 0:00:30]} 36. Bxe5 {[%emt 0:00:30]} Re8 {[%emt 0:00:30]} 37. f4 {[%emt 0:00:30]} f6 {[%emt 0:00:30]} 38. Bc3 {[%emt 0:00:30]} Rxe1 {[%emt 0:00:30]} 39. Bxe1 {[%emt 0:00:30]} Bd6 {[%emt 0:00:30]} 40. g3 {[%emt 0:00:30]} Kf7 {[%emt 0:00:30]} 41. Kf2 {[%emt 0:00:30]} Ke7 {[%emt 0:00:30]} 42. Bc3 {[%emt 0:00:30]} Bc8 {[%emt 0:00:30]} 43. Bd3 {[%emt 0:00:30]} Bd7 {[%emt 0:00:30]} 44. Bc2 {[%emt 0:00:30]} Kf7 {[%emt 0:00:30]} 45. Ke3 {[%emt 0:00:30]} g5 {[%emt 0:00:30]} 46. Bd1 {[%emt 0:00:30]} Kg6 {[%emt 0:00:30]} 47. a4 {[%emt 0:00:30]} Bc7 {[%emt 0:00:30]} 48. Bd2 {[%emt 0:00:30]} Bc8 {[%emt 0:00:30]} 49. Kd3 {[%emt 0:00:30]} Bd7 {[%emt 0:00:30]} 50. Kc3 {[%emt 0:00:30]} h6 {[%emt 0:00:30]} 51. Kb3 {[%emt 0:00:30]} h5 {[%emt 0:00:30]} 52. h4 {[%emt 0:00:30]} g4 {[%emt 0:00:30]} 53. Be3 {[%emt 0:00:30]} Bd6 {[%emt 0:00:30]} 54. Bc2 {[%emt 0:00:30]} Kf7 {[%emt 0:00:30]} 55. a5 {[%emt 0:00:30]} bxa5 {[%emt 0:00:30]} 56. Ka3 {[%emt 0:00:30]} Ke7 {[%emt 0:00:30]} 57. Ba4 {[%emt 0:00:30]} Bc8 {[%emt 0:00:30]} 58. Bb5 {[%emt 0:00:30]} Kd8 {[%emt 0:00:30]} 59. Ka4 {[%emt 0:00:30]} Bb7 {[%emt 0:00:30]} 60. Bd2 {[%emt 0:00:30]} Ke7 {[%emt 0:00:30]} 61. Bxa5 {[%emt 0:00:30]} Bc8 {[%emt 0:00:30]} 62. Bb6 {[%emt 0:00:30]} Bb7 {[%emt 0:00:30]} 63. Ba7 {[%emt 0:00:30]} Bc8 {[%emt 0:00:30]} 64. Ka5 {[%emt 0:00:30]} Bc7+ {[%emt 0:00:30]} 65. Bb6 {[%emt 0:00:30]} Bd6 {[%emt 0:00:30]} 66. Bc6 {[%emt 0:00:30]} Kf7 {[%emt 0:00:30]} 67. Kb5 {[%emt 0:00:30]} Kg6 {[%emt 0:00:30]} 68. Bxc5 {[%emt 0:00:30]} Ba6+ {[%emt 0:00:30]} 69. Kb6 {[%emt 0:00:30]} Bxc4 {[%emt 0:00:30]} 70. Bxd6 {[%emt 0:00:30]} Kh7 {[%emt 0:00:30]} 71. Kc5 {[%emt 0:00:30]} Ba2 {[%emt 0:00:30]} 72. Be8 {[%emt 0:00:30]} Kh6 {[%emt 0:00:30]} 73. Bf8+ {[%emt 0:00:30]} Kh7 {[%emt 0:00:30]} 74. Bf7 {[%emt 0:00:30]} Bxd5 {[%emt 0:00:30]} 75. Kxd5 {[%emt 0:00:30]} Kh8 {[%emt 0:00:30]} 76. Ke6 {[%emt 0:00:30]} Kh7 {[%emt 0:00:30]} 77. Kxf6 {[%emt 0:00:30]} Kh8 {[%emt 0:00:30]} 78. Kxf5 {[%emt 0:00:30]} Kh7 {[%emt 0:00:30]} 79. Kg5 {[%emt 0:00:30]} Kh8 {[%emt 0:00:30]} 80. Kxh5 {[%emt 0:00:30]} Kh7 {[%emt 0:00:30]} 81. Kxg4 {[%emt 0:00:30]} Kh8 {[%emt 0:00:30]} 82. Kf5 {[%emt 0:00:30]} Kh7 {[%emt 0:00:30]} 83. Kf6 {[%emt 0:00:30]} Kh8 {[%emt 0:00:30]} 84. g4 {[%emt 0:00:30]} Kh7 {[%emt 0:00:30]} 85. g5 {[%emt 0:00:30]} Kh8 {[%emt 0:00:30]} 86. h5 {[%emt 0:00:30]} Kh7 {[%emt 0:00:30]} 87. g6+ {[%emt 0:00:30]} Kh8 {[%emt 0:00:30]} 88. g7+ {[%emt 0:00:30]} Kh7 {[%emt 0:00:30]} 89. g8=B+ {[%emt 0:00:30]} Kh8 {[%emt 0:00:30]} 90. Bg7# {[%emt 0:00:30]} 1-0

[Event "Fall GM Norm Invitational 2020"]
[Site "Charlotte"]
[Date "2020.10.04"]
[Round "8.5"]
[White "Mishra, Abhimanyu"]
[Black "Niemann, Hans Moke"]
[Result "0-1"]
[ECO "C55"]
[WhiteElo "2342"]
[BlackElo "2465"]
[Annotator "ChessBase"]
[PlyCount "112"]
[EventDate "2020.09.30"]
[EventType "tourn"]
[EventCountry "USA"]
[SourceTitle "playchess.com"]
[Source "ChessBase"]
[SourceQuality "1"]
[TimeControl "5400+30"]

1. e4 {[%emt 1:30:30]} e5 {[%emt 1:30:30]} 2. Nf3 {[%emt 0:00:30]} Nc6 {[%emt 0:00:30]} 3. Bc4 {[%emt 0:00:30]} Nf6 {[%emt 0:00:30]} 4. d3 {[%emt 0:00:30]} h6 {[%emt 0:00:30]} 5. c3 {[%emt 0:00:30]} d6 {[%emt 0:00:30]} 6. O-O {[%emt 0:00:30]} g5 {[%emt 0:00:30]} 7. Nbd2 {[%emt 0:00:30]} g4 {[%emt 0:00:30]} 8. Ne1 {[%emt 0:00:30]} h5 {[%emt 0:00:30]} 9. f4 {[%emt 0:00:30]} exf4 {[%emt 0:00:30]} 10. Rxf4 {[%emt 0:00:30]} Bh6 {[%emt 0:00:30]} 11. Rf1 {[%emt 0:00:30]} Qe7 {[%emt 0:00:30]} 12. Nb3 {[%emt 0:00:30]} Ne5 {[%emt 0:00:30]} 13. Bxh6 {[%emt 0:00:30]} Rxh6 {[%emt 0:00:30]} 14. Nd2 {[%emt 0:00:30]} Bd7 {[%emt 0:00:30]} 15. Bb3 {[%emt 0:00:30]} g3 {[%emt 0:00:30]} 16. h3 {[%emt 0:00:30]} Nfg4 {[%emt 0:00:30]} 17. Qe2 {[%emt 0:00:30]} Nh2 {[%emt 0:00:30]} 18. Qe3 {[%emt 0:00:30]} Rh7 {[%emt 0:00:30]} 19. Rf4 {[%emt 0:00:30]} h4 {[%emt 0:00:30]} 20. d4 {[%emt 0:00:30]} Ng6 {[%emt 0:00:30]} 21. Nd3 {[%emt 0:00:30]} O-O-O {[%emt 0:00:30]} 22. Re1 {[%emt 0:00:30]} Re8 {[%emt 0:00:30]} 23. e5 {[%emt 0:00:30]} Nxf4 {[%emt 0:00:30]} 24. Nxf4 {[%emt 0:00:30]} c6 {[%emt 0:00:30]} 25. Nc4 {[%emt 0:00:30]} d5 {[%emt 0:00:30]} 26. Nd6+ {[%emt 0:00:30]} Qxd6 {[%emt 0:00:30]} 27. exd6 {[%emt 0:00:30]} Rxe3 {[%emt 0:00:30]} 28. Rxe3 Rh6 {[%emt 0:00:30]} 29. Ne2 {[%emt 0:01:00]} Re6 {[%emt 0:00:30]} 30. Rxe6 {[%emt 0:00:30]} Bxe6 {[%emt 0:00:30]} 31. Bc2 {[%emt 0:00:30]} Kd7 {[%emt 0:00:30]} 32. Nf4 {[%emt 0:00:30]} Kxd6 {[%emt 0:00:30]} 33. b4 {[%emt 0:00:30]} b5 {[%emt 0:00:30]} 34. a4 {[%emt 0:00:30]} bxa4 {[%emt 0:00:30]} 35. Bxa4 {[%emt 0:00:30]} Bf5 {[%emt 0:00:30]} 36. Bb3 {[%emt 0:00:30]} Be6 {[%emt 0:00:30]} 37. Ba4 {[%emt 0:00:30]} Bc8 {[%emt 0:00:30]} 38. Bd1 {[%emt 0:00:30]} Ba6 {[%emt 0:00:30]} 39. Be2 {[%emt 0:00:30]} Bxe2 {[%emt 0:00:30]} 40. Nxe2 {[%emt 0:00:30]} Ke6 {[%emt 0:00:30]} 41. Nc1 {[%emt 0:00:30]} Kf5 {[%emt 0:00:30]} 42. Nb3 {[%emt 0:00:30]} Ke4 {[%emt 0:00:30]} 43. Na5 {[%emt 0:00:30]} f5 {[%emt 0:00:30]} 44. Nxc6 {[%emt 0:00:30]} f4 {[%emt 0:00:30]} 45. b5 {[%emt 0:00:30]} f3 {[%emt 0:00:30]} 46. gxf3+ {[%emt 0:00:30]} Nxf3+ {[%emt 0:00:30]} 47. Kf1 {[%emt 0:00:30]} Ng5 {[%emt 0:00:30]} 48. Ne5 {[%emt 0:00:30]} Nxh3 {[%emt 0:00:30]} 49. Ng6 {[%emt 0:00:30]} g2+ {[%emt 0:00:30]} 50. Kxg2 {[%emt 0:00:30]} Nf4+ 51. Nxf4 {[%emt 0:00:30]} Kxf4 {[%emt 0:01:00]} 52. Kh3 {[%emt 0:00:30]} Ke4 {[%emt 0:00:30]} 53. Kxh4 {[%emt 0:00:30]} Kd3 {[%emt 0:00:30]} 54. Kg4 {[%emt 0:00:30]} Kxc3 {[%emt 0:00:30]} 55. Kf5 {[%emt 0:00:30]} Kxd4 {[%emt 0:00:30]} 56. Ke6 {[%emt 0:00:30]} Kc5 0-1

[Event "Fall GM Norm Invitational 2020"]
[Site "Charlotte"]
[Date "2020.10.05"]
[Round "9.3"]
[White "Liang, Jason"]
[Black "Mista, Aleksander"]
[Result "0-1"]
[ECO "C77"]
[WhiteElo "2367"]
[BlackElo "2574"]
[Annotator "ChessBase"]
[PlyCount "84"]
[EventDate "2020.09.30"]
[EventType "tourn"]
[EventCountry "USA"]
[SourceTitle "playchess.com"]
[Source "ChessBase"]
[SourceQuality "1"]
[TimeControl "5400+30"]

1. e4 {[%emt 1:30:30]} e5 {[%emt 1:30:30]} 2. Nf3 {[%emt 0:00:30]} Nc6 {[%emt 0:00:30]} 3. Bb5 {[%emt 0:00:30]} a6 {[%emt 0:00:30]} 4. Ba4 {[%emt 0:00:30]} Nf6 {[%emt 0:00:30]} 5. d3 {[%emt 0:00:30]} d6 {[%emt 0:00:30]} 6. c4 {[%emt 0:00:30]} Be7 {[%emt 0:00:30]} 7. Nc3 {[%emt 0:00:30]} O-O {[%emt 0:00:30]} 8. h3 {[%emt 0:00:30]} Nd7 {[%emt 0:00:30]} 9. O-O {[%emt 0:00:30]} Nc5 {[%emt 0:00:30]} 10. Bxc6 {[%emt 0:00:30]} bxc6 {[%emt 0:00:30]} 11. d4 {[%emt 0:00:30]} exd4 {[%emt 0:00:30]} 12. Nxd4 {[%emt 0:00:30]} Bd7 {[%emt 0:00:30]} 13. Be3 {[%emt 0:00:30]} Bf6 {[%emt 0:00:30]} 14. Qc2 {[%emt 0:00:30]} a5 {[%emt 0:00:30]} 15. Rad1 {[%emt 0:00:30]} Qb8 {[%emt 0:00:30]} 16. Nde2 {[%emt 0:00:30]} Qb4 {[%emt 0:00:30]} 17. b3 {[%emt 0:00:30]} Rfe8 {[%emt 0:00:30]} 18. Rb1 {[%emt 0:00:30]} g6 {[%emt 0:00:30]} 19. Rfd1 {[%emt 0:00:30]} Bg7 {[%emt 0:00:30]} 20. Bd4 {[%emt 0:00:30]} f5 {[%emt 0:00:30]} 21. Bxg7 {[%emt 0:00:30]} Kxg7 {[%emt 0:00:30]} 22. Qb2 {[%emt 0:00:30]} Kg8 {[%emt 0:00:30]} 23. exf5 {[%emt 0:00:30]} Bxf5 {[%emt 0:00:30]} 24. Ra1 {[%emt 0:00:30]} a4 {[%emt 0:00:30]} 25. Nd4 {[%emt 0:00:30]} axb3 {[%emt 0:00:30]} 26. axb3 {[%emt 0:00:30]} Rxa1 {[%emt 0:00:30]} 27. Qxa1 {[%emt 0:00:30]} Nxb3 {[%emt 0:00:30]} 28. Qb2 {[%emt 0:00:30]} Qxc4 {[%emt 0:00:30]} 29. Nxb3 {[%emt 0:00:30]} Rb8 {[%emt 0:00:30]} 30. g4 {[%emt 0:00:30]} Rxb3 {[%emt 0:00:30]} 31. Qa2 {[%emt 0:00:30]} Rxc3 {[%emt 0:00:30]} 32. Qa8+ {[%emt 0:00:30]} Kg7 {[%emt 0:00:30]} 33. gxf5 {[%emt 0:00:30]} Rxh3 {[%emt 0:00:30]} 34. f6+ {[%emt 0:00:30]} Kh6 {[%emt 0:00:30]} 35. Qf8+ {[%emt 0:00:30]} Kg5 {[%emt 0:00:30]} 36. Qc8 {[%emt 0:00:30]} Qh4 {[%emt 0:00:30]} 37. Rd2 {[%emt 0:00:30]} Rh1+ {[%emt 0:00:30]} 38. Kg2 {[%emt 0:00:30]} Re1 {[%emt 0:00:30]} 39. f4+ {[%emt 0:00:30]} Qxf4 {[%emt 0:00:30]} 40. Rf2 {[%emt 0:00:30]} Qe4+ {[%emt 0:00:30]} 41. Rf3 {[%emt 0:00:30]} Re2+ {[%emt 0:00:30]} 42. Kg1 {[%emt 0:00:30]} Qxf3 {[%emt 0:00:30]} 0-1